fUSD/lending_fUSD_20241009
["ID","MTS","AMOUNT","RATE_DAILY","PERIOD"]
[340075060,1728472240137,-500.0,0.00038356,30]
[340075061,1728472240146,-500.0,0.00038356,30]
[340075063,1728472240156,-1900.87,0.00038356,30]
[340075064,1728472240166,-500.0,0.00038356,30]
[340075065,1728472240175,-150.0,0.00038383,7]
[340075066,1728472240184,-1000.0,0.00038493,120]
[340075067,1728472240193,-150.0,0.00038507,7]
[340075068,1728472240203,-150.0,0.00038581,7]
[340075069,1728472240212,-500.0,0.0003863,2]
[340075070,1728472240221,-636.36384126,0.00038633,5]
[340075071,1728472240230,-500.0,0.00038646,2]
[340075072,1728472240240,-500.0,0.00038646,2]
[340075073,1728472240249,-500.0,0.00038646,2]
[340075074,1728472240259,-500.0,0.00038646,2]
[340075075,1728472240268,-500.0,0.00038646,2]
[340075076,1728472240278,-500.0,0.00038646,2]
[340075077,1728472240287,-500.0,0.00038646,2]
[340075078,1728472240297,-500.0,0.00038646,2]
[340075079,1728472240307,-3125.92322635,0.00038646,40]
[340075080,1728472240316,-15101.75886796,0.00038646,40]
[340075081,1728472240325,-7138.57677966,0.00038673,2]
[340075082,1728472240335,-23770.68797362,0.00038673,2]
[340075083,1728472240344,-150.0,0.00038743,7]
[340075084,1728472240354,-1983.39246161,0.00038753,2]
[340075085,1728472240363,-150.0,0.00038779,7]
[340075086,1728472240373,-1817.39666809,0.0003888,90]
[340075087,1728472240382,-15454.4320516,0.00038888,48]
[340075088,1728472240392,-151.39,0.00038894,2]
[340075089,1728472240402,-500.0,0.00038904,2]
[340075090,1728472240411,-824.27,0.00038904,30]
[340075091,1728472240420,-500.0,0.00038904,30]
[340075092,1728472240430,-500.0,0.00038904,30]
[340075093,1728472240439,-500.0,0.00038904,30]
[340075094,1728472240450,-500.0,0.00038904,30]
[340075095,1728472240460,-628.09,0.00038904,30]
[340075096,1728472240469,-5390.87,0.00038904,30]
[340075097,1728472240479,-500.0,0.00038904,30]
[340075098,1728472240488,-537.53,0.00038904,30]
[340075099,1728472240498,-747.42,0.00038904,30]
[340075100,1728472240507,-500.0,0.00038904,30]
[340075101,1728472240517,-500.0,0.00038904,30]
[340075102,1728472240526,-1000.0,0.00038904,30]
[340075103,1728472240535,-500.0,0.00038904,30]
[340075104,1728472240544,-500.0,0.00038904,30]
[340075105,1728472240554,-500.0,0.00038904,30]
[340075106,1728472240564,-500.0,0.00038904,30]
[340075107,1728472240573,-877.14,0.00038904,30]
[340075108,1728472240583,-559.79,0.00038904,30]
[340075109,1728472240690,-2035.53,0.00038904,30]
[340075110,1728472240699,-683.09,0.00038904,30]
[340075111,1728472240708,-553.75,0.00038904,30]
[340075112,1728472240718,-534.27,0.00038904,30]
[340075113,1728472240727,-401.4552898,0.00038904,30]
[340075114,1728472240736,-500.0,0.00038904,30]
[340075115,1728472240747,-500.0,0.00038904,30]
[340075116,1728472240757,-1594.18,0.00038904,30]
[340075117,1728472240766,-644.90449501,0.00038904,30]
[340075118,1728472240775,-500.0,0.00038904,30]
[340075119,1728472240784,-668.88,0.00038904,30]
[340075120,1728472240793,-500.0,0.00038904,30]
[340075121,1728472240802,-541.09,0.00038904,30]
[340075122,1728472240811,-213.67609889,0.00038904,30]
[340075123,1728472240821,-206.438325,0.00038904,30]
[340075125,1728472240830,-349.18131439,0.00038904,30]
[340075126,1728472240839,-280.52995961,0.00038904,30]
[340075127,1728472240849,-500.0,0.00038904,30]
[340075128,1728472240859,-500.0,0.00038904,30]
[340075129,1728472240868,-500.0,0.00038904,30]
[340075130,1728472240879,-500.0,0.00038904,30]
[340075131,1728472240888,-500.0,0.00038904,30]
[340075132,1728472240897,-500.0,0.00038904,30]
[340075133,1728472240906,-572.48,0.00038904,30]
[340075134,1728472240915,-1654.69,0.00038904,30]
[340075135,1728472240924,-500.0,0.00038904,30]
[340075136,1728472240934,-1942.95,0.00038904,30]
[340075137,1728472240943,-500.0,0.00038904,30]
[340075138,1728472240952,-500.0,0.00038904,30]
[340075139,1728472240961,-500.0,0.00038904,30]
[340075140,1728472240971,-500.0,0.00038904,30]
[340075141,1728472240979,-500.0,0.00038904,30]
[340075142,1728472240988,-500.0,0.00038904,30]
[340075143,1728472240998,-533.08,0.00038904,30]
[340075144,1728472241007,-546.62,0.00038904,30]
[340075145,1728472241016,-2064.31,0.00038904,30]
[340075146,1728472241025,-1823.64,0.00038904,30]
[340075147,1728472241034,-500.0,0.00038904,30]
[340075148,1728472241043,-1289.2,0.00038904,30]
[340075149,1728472241052,-11839.03,0.00038904,30]
[340075150,1728472241062,-534.64498149,0.00038904,30]
[340075151,1728472241071,-4008.58,0.00038904,30]
[340075152,1728472241080,-156.9863829,0.00038904,30]
[340075153,1728472241089,-500.0,0.00038904,30]
[340075154,1728472241102,-700.0,0.00038904,30]
[340075155,1728472241111,-500.0,0.00038904,30]
[340075156,1728472241121,-643.67,0.00038904,30]
[340075157,1728472241131,-502.13,0.00038904,30]
[340075158,1728472241141,-500.0,0.00038904,30]
[340075159,1728472241150,-1092.35,0.00038904,30]
[340075160,1728472241159,-500.0,0.00038904,30]
[340075161,1728472241168,-500.0,0.00038904,30]
[340075162,1728472241177,-1458.82,0.00038904,30]
[340075163,1728472241186,-604.49,0.00038904,30]
[340075164,1728472241195,-9542.37,0.00038904,30]
[340075165,1728472241204,-500.0,0.00038904,30]
[340075166,1728472241213,-500.0,0.00038904,30]
[340075167,1728472241222,-596.72,0.00038904,30]
[340075168,1728472241232,-500.0,0.00038904,30]
[340075169,1728472241241,-500.0,0.00038904,30]
[340075170,1728472241250,-503.23,0.00038904,30]
[340075171,1728472241259,-735.61,0.00038904,30]
[340075172,1728472241269,-1632.67,0.00038904,30]
[340075173,1728472241278,-500.0,0.00038904,30]
[340075174,1728472241288,-500.0,0.00038904,30]
[340075175,1728472241299,-500.0,0.00038904,30]
[340075176,1728472241308,-500.0,0.00038904,30]
[340075177,1728472241318,-500.0,0.00038904,30]
[340075178,1728472241327,-500.0,0.00038904,30]
[340075179,1728472241336,-500.0,0.00038904,30]
[340075180,1728472241346,-500.0,0.00038904,30]
[340075181,1728472241356,-500.0,0.00038904,30]
[340075182,1728472241366,-1523.71,0.00038904,30]
[340075183,1728472241376,-500.0,0.00038904,30]
[340075184,1728472241386,-500.0,0.00038904,30]
[340075185,1728472241396,-617.41,0.00038904,30]
[340075186,1728472241406,-500.0,0.00038904,30]
[340075187,1728472241417,-500.0,0.00038904,30]
[340075188,1728472241426,-1382.56,0.00038904,30]
[340075189,1728472241436,-621.72,0.00038904,30]
[340075190,1728472241445,-449.46757027,0.00038904,30]
[340075191,1728472241455,-500.0,0.00038904,30]
[340075192,1728472241467,-500.0,0.00038904,30]
[340075193,1728472241478,-733.37,0.00038904,30]
[340075194,1728472241489,-500.0,0.00038904,30]
[340075195,1728472241499,-1126.27,0.00038904,30]
[340075196,1728472241509,-500.0,0.00038904,30]
[340075197,1728472241518,-500.0,0.00038904,30]
[340075198,1728472241527,-500.0,0.00038904,30]
[340075199,1728472241536,-604.5133991,0.00038904,30]
[340075200,1728472241545,-1900.87,0.00038904,30]
[340075201,1728472241554,-500.0,0.00038904,30]
[340075202,1728472241565,-207.8485806,0.00038973,2]
[340075203,1728472241575,-710.0473344,0.00038973,2]
[340075204,1728472241584,-150.0,0.00038978,7]
[340075205,1728472241594,-151.39,0.0003899,2]
[340075206,1728472241603,-255.94754092,0.00038999,120]
[340075207,1728472241613,-50000.0,0.00039,39]
[340075208,1728472241623,-50000.0,0.00039,29]
[340075209,1728472241634,-444.70607935,0.00039,120]
[340075210,1728472241643,-12272.0,0.00039,30]
[340075211,1728472241653,-150.0,0.00039,4]
[340075212,1728472241663,-5273.24,0.00039,10]
[340075213,1728472241672,-248.12134955,0.00039001,40]
[340075214,1728472241681,-150.0,0.00039027,7]
[340075215,1728472241690,-201.6,0.0003913,2]
[340075216,1728472241699,-150.0,0.00039176,7]
[340075217,1728472241708,-500.0,0.00039178,2]
[340075218,1728472241718,-500.0,0.00039328,60]
[340075219,1728472241729,-500.0,0.00039328,60]
[340075220,1728472241740,-500.0,0.00039328,60]
[340075221,1728472241750,-300.0,0.00039356,30]
[340075222,1728472241759,-150.0,0.00039374,7]
[340075223,1728472241768,-151.39,0.00039442,2]
[340075224,1728472241777,-500.0,0.00039452,2]
[340075225,1728472241786,-824.27,0.00039452,30]
[340075226,1728472241795,-500.0,0.00039452,30]
[340075227,1728472241805,-500.0,0.00039452,30]
[340075228,1728472241815,-500.0,0.00039452,30]
[340075229,1728472241828,-500.0,0.00039452,30]
[340075230,1728472241839,-628.09,0.00039452,30]
[340075231,1728472241849,-5390.87,0.00039452,30]
[340075232,1728472241858,-500.0,0.00039452,30]
[340075233,1728472241869,-537.53,0.00039452,30]
[340075234,1728472241879,-747.42,0.00039452,30]
[340075235,1728472241888,-500.0,0.00039452,30]
[340075236,1728472241897,-500.0,0.00039452,30]
[340075237,1728472241907,-1023.98800836,0.00039452,30]
[340075238,1728472241917,-500.0,0.00039452,30]
[340075239,1728472241926,-500.0,0.00039452,30]
[340075240,1728472241935,-500.0,0.00039452,30]
[340075241,1728472241946,-500.0,0.00039452,30]
[340075242,1728472241956,-877.14,0.00039452,30]
[340075243,1728472241966,-559.79,0.00039452,30]
[340075244,1728472241976,-2035.53,0.00039452,30]
[340075245,1728472241985,-683.09,0.00039452,30]
[340075246,1728472241994,-553.75,0.00039452,30]
[340075247,1728472242003,-534.27,0.00039452,30]
[340075248,1728472242013,-500.0,0.00039452,30]
[340075249,1728472242022,-500.0,0.00039452,30]
[340075250,1728472242032,-1594.18,0.00039452,30]
[340075251,1728472242041,-500.0,0.00039452,30]
[340075252,1728472242050,-668.88,0.00039452,30]
[340075253,1728472242059,-500.0,0.00039452,30]
[340075254,1728472242071,-541.09,0.00039452,30]
[340075255,1728472242079,-446.37863917,0.00039452,30]
[340075256,1728472242089,-500.0,0.00039452,30]
[340075257,1728472242103,-500.0,0.00039452,30]
[340075258,1728472242113,-500.0,0.00039452,30]
[340075259,1728472242123,-500.0,0.00039452,30]
[340075260,1728472242134,-500.0,0.00039452,30]
[340075261,1728472242145,-572.48,0.00039452,30]
[340075262,1728472242157,-1654.69,0.00039452,30]
[340075263,1728472242168,-500.0,0.00039452,30]
[340075264,1728472242177,-1942.95,0.00039452,30]
[340075265,1728472242188,-500.0,0.00039452,30]
[340075266,1728472242199,-500.0,0.00039452,30]
[340075267,1728472242210,-500.0,0.00039452,30]
[340075268,1728472242221,-566.13866979,0.00039452,30]
[340075269,1728472242232,-500.0,0.00039452,30]
[340075270,1728472242241,-500.0,0.00039452,30]
[340075271,1728472242250,-533.08,0.00039452,30]
[340075272,1728472242259,-546.62,0.00039452,30]
[340075273,1728472242268,-2064.31,0.00039452,30]
[340075274,1728472242278,-1823.64,0.00039452,30]
[340075275,1728472242287,-500.0,0.00039452,30]
[340075276,1728472242296,-1289.2,0.00039452,30]
[340075277,1728472242305,-11839.03,0.00039452,30]
[340075278,1728472242315,-4008.58,0.00039452,30]
[340075279,1728472242324,-500.0,0.00039452,30]
[340075280,1728472242333,-700.0,0.00039452,30]
[340075281,1728472242342,-500.0,0.00039452,30]
[340075282,1728472242443,-643.67,0.00039452,30]
[340075283,1728472242453,-502.13,0.00039452,30]
[340075284,1728472242462,-500.0,0.00039452,30]
[340075285,1728472242471,-1092.35,0.00039452,30]
[340075286,1728472242481,-500.0,0.00039452,30]
[340075287,1728472242490,-500.0,0.00039452,30]
[340075288,1728472242499,-1458.82,0.00039452,30]
[340075289,1728472242509,-604.49,0.00039452,30]
[340075290,1728472242518,-9542.37,0.00039452,30]
[340075291,1728472242527,-500.0,0.00039452,30]
[340075292,1728472242536,-500.0,0.00039452,30]
[340075293,1728472242545,-596.72,0.00039452,30]
[340075294,1728472242554,-500.0,0.00039452,30]
[340075295,1728472242563,-500.0,0.00039452,30]
[340075296,1728472242573,-503.23,0.00039452,30]
[340075297,1728472242583,-735.61,0.00039452,30]
[340075298,1728472242591,-1632.67,0.00039452,30]
[340075299,1728472242600,-500.0,0.00039452,30]
[340075300,1728472242609,-500.0,0.00039452,30]
[340075301,1728472242619,-500.0,0.00039452,30]
[340075302,1728472242628,-523.72263915,0.00039452,30]
[340075303,1728472242637,-500.0,0.00039452,30]
[340075304,1728472242646,-300.77318956,0.00039452,30]
[340075305,1728472242655,-500.0,0.00039452,30]
[340075306,1728472242664,-500.0,0.00039452,30]
[340075307,1728472242674,-500.0,0.00039452,30]
[340075308,1728472242683,-500.0,0.00039452,30]
[340075309,1728472242692,-1523.71,0.00039452,30]
[340075310,1728472242702,-500.0,0.00039452,30]
[340075311,1728472242711,-617.41,0.00039452,30]
[340075312,1728472242720,-500.0,0.00039452,30]
[340075313,1728472242730,-500.0,0.00039452,30]
[340075314,1728472242738,-1382.56,0.00039452,30]
[340075315,1728472242747,-621.72,0.00039452,30]
[340075316,1728472242757,-500.0,0.00039452,30]
[340075317,1728472242768,-500.0,0.00039452,30]
[340075318,1728472242778,-733.37,0.00039452,30]
[340075319,1728472242789,-1126.27,0.00039452,30]
[340075320,1728472242798,-500.0,0.00039452,30]
[340075321,1728472242808,-500.0,0.00039452,30]
[340075322,1728472242818,-500.0,0.00039452,30]
[340075323,1728472242830,-500.0,0.00039452,30]
[340075324,1728472242840,-1900.87,0.00039452,30]
[340075325,1728472242850,-500.0,0.00039452,30]
[340075326,1728472242861,-150.0,0.000395,7]
[340075327,1728472242871,-150.0,0.00039547,7]
[340075328,1728472242881,-150.0,0.00039572,7]
[340075329,1728472242890,-2488.32652242,0.000396,33]
[340075330,1728472242900,-1983.39246161,0.00039629,2]
[340075331,1728472242911,-204.847281,0.00039673,2]
[340075332,1728472242920,-500.0,0.00039726,2]
[340075333,1728472242930,-150.0,0.0003977,7]
[340075334,1728472242940,-259.94336589,0.0003989,2]
[340075335,1728472242949,-958.96,0.00039897,30]
[340075336,1728472242959,-10010.63381847,0.00039897,2]
[340075337,1728472242969,-1319.3840997,0.00039944,10]
[340075338,1728472242978,-207.8485806,0.00039953,2]
[340075339,1728472242987,-710.0473344,0.00039953,2]
[340075340,1728472242997,-150.0,0.00039968,7]
[340075341,1728472243007,-151.39,0.0003997,2]
[340075342,1728472243017,-176404.0735164,0.0003998,30]
[340075344,1728472243026,-151.39,0.0003999,2]
[340075345,1728472243036,-151.39,0.0003999,2]
[340075346,1728472243046,-151.39,0.0003999,2]
[340075347,1728472243055,-151.39,0.0003999,2]
[340075348,1728472243064,-151.39,0.0003999,2]
[340075349,1728472243074,-151.39,0.0003999,2]
[340075350,1728472243083,-151.39,0.0003999,2]
[340075351,1728472243094,-151.39,0.0003999,2]
[340075352,1728472243107,-151.39,0.0003999,2]
[340075354,1728472243116,-151.39,0.0003999,2]
[340075356,1728472243125,-151.39,0.0003999,2]
[340075357,1728472243134,-151.39,0.0003999,2]
[340075358,1728472243145,-151.39,0.0003999,2]
[340075359,1728472243154,-151.39,0.0003999,2]
[340075360,1728472243164,-151.39,0.0003999,2]
[340075361,1728472243175,-151.39,0.0003999,2]
[340075362,1728472243184,-151.39,0.0003999,2]
[340075363,1728472243193,-151.39,0.0003999,2]
[340075364,1728472243203,-151.39,0.0003999,2]
[340075366,1728472243213,-151.39,0.0003999,2]
[340075368,1728472243222,-151.39,0.0003999,2]
[340075369,1728472243232,-151.39,0.0003999,2]
[340075370,1728472243241,-151.39,0.0003999,2]
[340075371,1728472243251,-151.39,0.0003999,2]
[340075372,1728472243260,-958.96,0.00039999,30]
[340075373,1728472243271,-958.96,0.00039999,30]
[340075374,1728472243281,-958.96,0.00039999,30]
[340075375,1728472243290,-958.96,0.00039999,30]
[340075376,1728472243300,-958.96,0.00039999,30]
[340075377,1728472243309,-958.96,0.00039999,30]
[340075378,1728472243318,-958.96,0.00039999,30]
[340075379,1728472243328,-958.96,0.00039999,30]
[340075380,1728472243337,-958.96,0.00039999,30]
[340075381,1728472243347,-958.96,0.00039999,30]
[340075382,1728472243356,-958.96,0.00039999,30]
[340075383,1728472243366,-958.96,0.00039999,30]
[340075384,1728472243376,-959.11377654,0.00039999,30]
[340075385,1728472243386,-50000.0,0.0004,40]
[340075386,1728472243395,-50000.0,0.0004,30]
[340075387,1728472243404,-500.0,0.0004,4]
[340075388,1728472243414,-371.51910144,0.0004,2]
[340075389,1728472243424,-208.31305099,0.0004,2]
[340075390,1728472243434,-200.0,0.0004,120]
[340075391,1728472243444,-326.94748371,0.0004,30]
[340075392,1728472243454,-206.6,0.0004,30]
[340075393,1728472243464,-1333692.06,0.0004,30]
[340075394,1728472243474,-1349.90126918,0.0004,120]
[340075395,1728472243484,-190.54938821,0.0004,30]
[340075396,1728472243494,-383.52536665,0.0004,120]
[340075397,1728472243504,-157.38973357,0.0004,120]
[340075398,1728472243514,-500.0,0.0004,2]
[340075399,1728472243524,-2062925.67135466,0.0004,30]
[340075400,1728472243571,-641666.68864534,0.0004,30]
[340075401,1728472243581,-65042.69965479,0.0004,7]
[340075402,1728472243591,-2500.0,0.0004,60]
[340075403,1728472243600,-2279.55380072,0.0004,4]
[340075404,1728472243610,-219.36628295,0.0004,30]
[340075405,1728472243619,-972.28,0.0004,120]
[340075406,1728472243629,-940.29,0.0004,120]
[340075407,1728472243638,-824.27,0.0004,30]
[340075408,1728472243648,-500.0,0.0004,30]
[340075409,1728472243659,-500.0,0.0004,30]
[340075410,1728472243668,-500.0,0.0004,30]
[340075411,1728472243678,-500.0,0.0004,30]
[340075412,1728472243688,-628.09,0.0004,30]
[340075413,1728472243699,-5390.87,0.0004,30]
[340075414,1728472243709,-500.0,0.0004,30]
[340075415,1728472243718,-747.42,0.0004,30]
[340075416,1728472243727,-537.53,0.0004,30]
[340075417,1728472243737,-500.0,0.0004,30]
[340075418,1728472243746,-500.0,0.0004,30]
[340075419,1728472243755,-500.0,0.0004,30]
[340075420,1728472243765,-500.0,0.0004,30]
[340075421,1728472243775,-500.0,0.0004,30]
[340075422,1728472243785,-500.0,0.0004,30]
[340075423,1728472243794,-877.14,0.0004,30]
[340075424,1728472243805,-559.79,0.0004,30]
[340075425,1728472243814,-2035.53,0.0004,30]
[340075426,1728472243824,-683.09,0.0004,30]
[340075427,1728472243833,-553.75,0.0004,30]
[340075428,1728472243843,-534.27,0.0004,30]
[340075430,1728472243853,-500.0,0.0004,30]
[340075432,1728472243863,-500.0,0.0004,30]
[340075433,1728472243872,-1594.18,0.0004,30]
[340075434,1728472243882,-668.88,0.0004,30]
[340075435,1728472243891,-500.0,0.0004,30]
[340075436,1728472243900,-500.0,0.0004,30]
[340075437,1728472243910,-541.09,0.0004,30]
[340075438,1728472243919,-516.42591652,0.0004,30]
[340075439,1728472244021,-500.0,0.0004,30]
[340075440,1728472244031,-388.54293478,0.0004,30]
[340075441,1728472244040,-500.0,0.0004,30]
[340075442,1728472244050,-500.0,0.0004,30]
[340075443,1728472244060,-572.48,0.0004,30]
[340075444,1728472244070,-1654.69,0.0004,30]
[340075445,1728472244080,-500.0,0.0004,30]
[340075446,1728472244089,-1942.95,0.0004,30]
[340075447,1728472244100,-500.0,0.0004,30]
[340075448,1728472244109,-503.24562658,0.0004,30]
[340075449,1728472244119,-462.83279816,0.0004,30]
[340075450,1728472244128,-500.0,0.0004,30]
[340075451,1728472244138,-500.0,0.0004,30]
[340075452,1728472244147,-533.08,0.0004,30]
[340075453,1728472244156,-546.62,0.0004,30]
[340075454,1728472244165,-2064.31,0.0004,30]
[340075455,1728472244174,-1823.64,0.0004,30]
[340075456,1728472244184,-500.0,0.0004,30]
[340075457,1728472244194,-1289.2,0.0004,30]
[340075458,1728472244203,-11839.03,0.0004,30]
[340075459,1728472244212,-4008.58,0.0004,30]
[340075460,1728472244221,-700.0,0.0004,30]
[340075461,1728472244230,-500.0,0.0004,30]
[340075462,1728472244240,-500.0,0.0004,30]
[340075463,1728472244249,-643.67,0.0004,30]
[340075464,1728472244259,-502.13,0.0004,30]
[340075465,1728472244268,-500.0,0.0004,30]
[340075466,1728472244277,-1092.35,0.0004,30]
[340075467,1728472244286,-500.0,0.0004,30]
[340075468,1728472244295,-500.0,0.0004,30]
[340075469,1728472244304,-1458.82,0.0004,30]
[340075470,1728472244314,-604.49,0.0004,30]
[340075471,1728472244323,-9542.37,0.0004,30]
[340075472,1728472244332,-500.0,0.0004,30]
[340075473,1728472244342,-500.0,0.0004,30]
[340075474,1728472244351,-596.72,0.0004,30]
[340075475,1728472244360,-500.0,0.0004,30]
[340075476,1728472244370,-500.0,0.0004,30]
[340075477,1728472244379,-503.23,0.0004,30]
[340075478,1728472244388,-735.61,0.0004,30]
[340075479,1728472244398,-1632.67,0.0004,30]
[340075480,1728472244407,-500.0,0.0004,30]
[340075481,1728472244416,-500.0,0.0004,30]
[340075482,1728472244426,-500.0,0.0004,30]
[340075483,1728472244436,-500.0,0.0004,30]
[340075484,1728472244446,-500.0,0.0004,30]
[340075485,1728472244456,-500.0,0.0004,30]
[340075486,1728472244465,-500.0,0.0004,30]
[340075487,1728472244474,-500.0,0.0004,30]
[340075488,1728472244484,-1523.71,0.0004,30]
[340075489,1728472244493,-165.24151307,0.0004,30]
[340075490,1728472244502,-617.41,0.0004,30]
[340075491,1728472244512,-500.0,0.0004,30]
[340075492,1728472244521,-1382.56,0.0004,30]
[340075493,1728472244530,-500.0,0.0004,30]
[340075494,1728472244540,-621.72,0.0004,30]
[340075495,1728472244549,-500.0,0.0004,30]
[340075496,1728472244559,-500.0,0.0004,30]
[340075497,1728472244568,-733.37,0.0004,30]
[340075498,1728472244578,-1126.27,0.0004,30]
[340075499,1728472244587,-500.0,0.0004,30]
[340075500,1728472244597,-500.0,0.0004,30]
[340075501,1728472244606,-513.59097125,0.0004,30]
[340075502,1728472244615,-500.0,0.0004,30]
[340075503,1728472244624,-1900.87,0.0004,30]
[340075504,1728472244633,-908.76627451,0.0004,120]
[340075505,1728472244649,-150.0,0.00040067,7]
[340075506,1728472244658,-2000.0,0.000401,120]
[340075507,1728472244667,-150.0,0.00040166,7]
[340075508,1728472244676,-150.0,0.00040256,7]
[340075509,1728472244685,-500.0,0.00040274,2]
[340075510,1728472244694,-150.0,0.00040364,7]
[340075511,1728472244703,-500.0,0.00040424,60]
[340075512,1728472244712,-500.0,0.00040424,60]
[340075513,1728472244721,-500.0,0.00040424,60]
[340075514,1728472244731,-42822.3504679,0.0004048,10]
[340075515,1728472244740,-1983.39246161,0.00040505,28]
[340075516,1728472244750,-150.0,0.0004054,20]
[340075517,1728472244758,-824.27,0.00040547,30]
[340075518,1728472244767,-500.0,0.00040547,30]
[340075519,1728472244776,-500.0,0.00040547,30]
[340075520,1728472244785,-500.0,0.00040547,30]
[340075521,1728472244795,-500.0,0.00040547,30]
[340075522,1728472244804,-628.09,0.00040547,30]
[340075523,1728472244813,-5390.87,0.00040547,30]
[340075524,1728472244822,-500.0,0.00040547,30]
[340075525,1728472244831,-747.42,0.00040547,30]
[340075526,1728472244840,-537.53,0.00040547,30]
[340075527,1728472244850,-378.59920612,0.00040547,30]
[340075528,1728472244859,-500.0,0.00040547,30]
[340075529,1728472244869,-500.0,0.00040547,30]
[340075530,1728472244878,-500.0,0.00040547,30]
[340075531,1728472244890,-500.0,0.00040547,30]
[340075532,1728472244899,-500.0,0.00040547,30]
[340075533,1728472244910,-877.14,0.00040547,30]
[340075534,1728472244921,-559.79,0.00040547,30]
[340075535,1728472244931,-2035.53,0.00040547,30]
[340075536,1728472244941,-683.09,0.00040547,30]
[340075537,1728472244951,-553.75,0.00040547,30]
[340075538,1728472244961,-534.27,0.00040547,30]
[340075539,1728472244970,-500.0,0.00040547,30]
[340075540,1728472244979,-500.0,0.00040547,30]
[340075541,1728472244989,-1594.18,0.00040547,30]
[340075542,1728472244999,-668.88,0.00040547,30]
[340075543,1728472245008,-500.0,0.00040547,30]
[340075544,1728472245019,-500.0,0.00040547,30]
[340075545,1728472245029,-541.09,0.00040547,30]
[340075546,1728472245039,-500.0,0.00040547,30]
[340075547,1728472245048,-500.0,0.00040547,30]
[340075548,1728472245057,-500.0,0.00040547,30]
[340075549,1728472245066,-572.48,0.00040547,30]
[340075550,1728472245076,-1654.69,0.00040547,30]
[340075551,1728472245085,-500.0,0.00040547,30]
[340075552,1728472245095,-1942.95,0.00040547,30]
[340075553,1728472245107,-500.0,0.00040547,30]
[340075554,1728472245116,-500.0,0.00040547,30]
[340075555,1728472245126,-500.0,0.00040547,30]
[340075556,1728472245135,-533.08,0.00040547,30]
[340075557,1728472245145,-546.62,0.00040547,30]
[340075558,1728472245154,-2064.31,0.00040547,30]
[340075559,1728472245163,-1823.64,0.00040547,30]
[340075560,1728472245172,-500.0,0.00040547,30]
[340075561,1728472245181,-1289.2,0.00040547,30]
[340075562,1728472245191,-11839.03,0.00040547,30]
[340075563,1728472245200,-4008.58,0.00040547,30]
[340075564,1728472245209,-700.0,0.00040547,30]
[340075565,1728472245218,-500.0,0.00040547,30]
[340075566,1728472245227,-310.08779989,0.00040547,30]
[340075567,1728472245236,-643.67,0.00040547,30]
[340075568,1728472245246,-502.13,0.00040547,30]